Cogmind - Beta 17.1 @@@ ROGUE MODE // 2026.09.12 @ 22:00:31 Player: Scuttle Result: Destroyed by 8R-AWN with 8R-AWN's Boregun Performance ------------- Evolutions (0) 0 Regions Visited (3) 600 Robots Destroyed (15) 75 Value Destroyed (272) 272 Prototype IDs (27) 540 Alien Tech Used (0) 0 Bonus (255) 255 TOTAL SCORE: 1742 Bonus ------- Aligned with FarCom 300 Friendly Fire -45 Cogmind --------- Core Integrity 0/250 Matter 90/300 Energy 98/100 System Corruption 2% Temperature Cool (0) Movement Treading (160) Location -10/Exiles Parts ------- > --- POWER (1) -------- (None) > --- PROPULSION (2) --- Light Treads Light Treads > --- UTILITY (2) ------ Heat Sink Medium Storage Unit > --- WEAPON (2) ------- Assault Rifle Longsword +1 > --- INVENTORY (10) --- Ion Engine Light Treads Light Treads 0b10 Alert Chip Particle Gun Assault Rifle Assault Rifle Grenade Launcher Peak State ------------ > --- POWER ------------ Light Ion Engine > --- PROPULSION ------- Light Treads Light Treads > --- UTILITY ---------- Heat Sink Medium Storage Unit > --- WEAPON ----------- Assault Rifle Longsword +1 > --- INVENTORY -------- Ion Engine Light Treads Light Treads Light Treads Light Treads 0b10 Alert Chip Particle Gun Assault Rifle Assault Rifle Grenade Launcher [Rating: 15] Favorites ----------- Power Light Nuclear Core Engine Light Ion Engine Power Core Light Nuclear Core Propulsion Light Treads Treads Light Treads Utility Heat Sink Device Heat Sink Storage Medium Storage Unit Processor Targeting Computer Weapon Assault Rifle Energy Gun Small Laser Ballistic Gun Assault Rifle Launcher Grenade Launcher Slashing Weapon Longsword +1 Build | -11 -10 -10 -10 ------- Run | Yrd Mat Min Exi Slots Evolved . | . . . . Power . | . . . . Propulsion . | . . . . Utility . | . . . . Weapon . | . . . . Parts Attached 22 | 5 11 2 4 Power 3 | 1 1 1 . Engine 2 | 1 . 1 . Core 1 | . 1 . . Reactor . | . . . . Propulsion 7 | 2 3 . 2 Treads 7 | 2 3 . 2 Leg . | . . . . Wheel . | . . . . Hover . | . . . . Flight . | . . . . Utility 4 | . 4 . . Device 2 | . 2 . . Storage 1 | . 1 . . Processor 1 | . 1 . . Hackware . | . . . . Protection . | . . . . Artifact . | . . . . Weapon 8 | 2 3 1 2 Energy Gun 1 | 1 . . . Energy Cannon . | . . . . Ballistic Gun 4 | 1 3 . . Ballistic Cannon . | . . . . Launcher 2 | . . 1 1 Special Weapon . | . . . . Impact Weapon . | . . . . Slashing Weapon 1 | . . . 1 Piercing Weapon . | . . . . Special Melee Weapon . | . . . . Unidentified Prototypes . | . . . . Parts Lost 3 | . . . 3 Power 1 | . . . 1 Propulsion 2 | . . . 2 Utility . | . . . . Weapon . | . . . . Highest Loss Streak 3 | . . . 3 To Critical Strikes 3 | . . . 3 Average Backups 6 | 1 5 8 8 Power . | . . 1 1 Propulsion 3 | 1 2 4 3 Utility . | . . . . Weapon 2 | . 2 3 3 Tool/Special . | . . . . Unused Backups 8 | 1 5 . 2 Power 2 | . 1 . 1 Propulsion 4 | 1 3 . . Utility 1 | . . . 1 Weapon 1 | . 1 . . Tool/Special . | . . . . Average Slot Usage (%) 93 | . 90 100 99 Engine 7 | . 5 10 13 Core 6 | . 8 3 . Treads 27 | . 27 28 28 Device 10 | . 8 14 14 Storage 7 | . 3 14 14 Processor 4 | . 7 . . Ballistic Gun 26 | . 26 28 23 Peak Build Rating 15 | 5 10 10 15 Average Rating 7 | 4 7 7 8 On Entrance 5 | . 5 10 7 Avg Prop Armor Cover (%) 10 | . 10 . . Naked Turns . | . . . . Heaviest Build 20 | 8 20 20 19 Greatest Support 40 | 40 40 40 40 Greatest Overweight (x) . | . . . . Average Overweight (x) . | . . . . Largest Inventory Capacity 10 | 5 10 10 10 Average Capacity 7 | 5 6 10 10 Most Carried 10 | 4 9 9 10 Average Carried 6 | 1 5 8 8 Final Capacity 10 | 5 10 10 10 Final Carried 9 | 3 9 8 8 Class Distribution -------------------- 100% | Mutant Dominant Class ---------------- Mutant | -10/Materials Mutant | -10/Mines Mutant | -10/Exiles Resources | -11 -10 -10 -10 ----------- Run | Yrd Mat Min Exi Matter Collected 602 | 262 330 10 . Remotely . | . . . . Salvage Created 466 | 81 342 20 23 Parts 29 | 2 23 4 . Haulers Intercepted 1 | . 1 . . Recyclers Shooed . | . . . . Parts Field Recycled . | . . . . Retrieved Matter . | . . . . Parts Self-Destructed . | . . . . Prevented . | . . . . Parts Restored . | . . . . Kills | -11 -10 -10 -10 ------- Run | Yrd Mat Min Exi Combat Hostiles Destroyed 18 | . 8 3 7 Guns 8 | . 8 . . AOE 10 | . . 3 7 Classes Destroyed 7 | 1 5 . 1 Builder 1 | . 1 . . Hauler 1 | . 1 . . Recycler 1 | 1 . . . Watcher 1 | . 1 . . Swarmer 6 | . 3 3 . Grunt 5 | . 5 . . Assembled 7 | . . . 7 Best Kill Streak 7 | 1 3 3 7 Combat Bots Only 7 | . 3 3 7 Max Kills in Single Turn 4 | 1 1 2 4 Gunslinging . | . . . . Exploded 4 | . . 2 4 Melee . | . . . . Uniques/NPCs Destroyed . | . . . . Combat | -11 -10 -10 -10 -------- Run | Yrd Mat Min Exi Hostile Shots Fired 86 | . 48 7 31 Missed 22 | . 11 3 8 Hits 64 | . 37 4 23 Projectile 64 | . 37 4 23 AOE 1 | . 1 . . Critical Strikes 21 | . 4 . 17 Part Disruptions 2 | . 2 . . Damage Taken 1009 | . 528 70 411 Core 257 | . 77 34 146 Absorbed by Shields . | . . . . Regen/Repaired (Parts) 57 | . 57 . . Core Remaining (%) 100 | 100 . . . Volleys Fired 57 | 4 46 2 5 Largest 2 | 2 2 1 2 Hottest 60 | 60 60 30 40 Shots Fired 113 | 8 95 2 8 Gun 108 | 8 95 . 5 Cannon . | . . . . Launcher 5 | . . 2 3 Special . | . . . . Kinetic 103 | 4 94 . 5 Thermal 5 | 4 1 . . Explosive 5 | . . 2 3 Electromagnetic . | . . . . Robot Hit Streak 14 | 6 14 1 2 Robot Miss Streak 3 | 1 3 . 3 Penetration Max . | . . . . Secondary Targets . | . . . . Shots Hit Robots 81 | 7 60 1 13 Core Hits 37 | 1 19 3 14 Critical Kills . | . . . . Critical Parts Destroyed . | . . . . Critical Strikes 2 | . . . 2 Sever 2 | . . . 2 Melee Attacks 12 | . . . 12 Impact . | . . . . Slashing 12 | . . . 12 Piercing . | . . . . Sneak Attacks . | . . . . Combat Hostiles . | . . . . Follow-up Attacks . | . . . . Damage Inflicted 1808 | 82 792 123 811 Guns 884 | 82 777 . 25 Cannons . | . . . . Explosions 392 | . . 123 269 Melee 517 | . . . 517 Ramming 15 | . 15 . . Kinetic 851 | 49 777 . 25 Thermal 33 | 33 . . . Explosive 392 | . . 123 269 Electromagnetic . | . . . . Impact . | . . . . Slashing 517 | . . . 517 Piercing . | . . . . Highest Corruption 2 | . 2 2 2 Average Corruption 1 | . 1 2 2 Corruption Purged . | . . . . Corruption Blocked . | . . . . Effects 18 | . 7 4 7 Message Errors 3 | . 1 1 1 Matter Fused 3 | . 2 . 1 Heat Flow Errors 1 | . . . 1 Energy Discharges 3 | . 1 2 . Data Loss (minor) 2 | . . . 2 Data Loss (major) 2 | . . 1 1 Misfires 4 | . 3 . 1 Overload Shots . | . . . . Overflow Damage . | . . . . Projectiles . | . . . . Explosions . | . . . . Melee . | . . . . Knockbacks . | . . . . Impact . | . . . . Kinetic . | . . . . Secondary . | . . . . Self-Inflicted Damage 38 | . . 38 . Shots 1 | . . 1 . Rammed 3 | . 3 . . Targets Rammed 3 | . 3 . . Kicked . | . . . . Crushed . | . . . . Highest Temperature 196 | . 20 . 196 Average Temperature 32 | . 7 . 108 Received Heat Transfer 249 | . 249 . . Siege Activations . | . . . . Martial Activations . | . . . . Shielding Activations . | . . . . Robots Disrupted . | . . . . Combat Hostiles . | . . . . Robots Corrupted . | . . . . Combat Hostiles . | . . . . Parts Fried . | . . . . Impact Corruptions . | . . . . Robots Melted . | . . . . Combat Hostiles . | . . . . Parts Melted . | . . . . Heat Transferred 75 | 75 . . . Parts Sabotaged . | . . . . Parts Stolen . | . . . . Parts Stripped . | . . . . Power Chain Reactions . | . . . . Alert | -11 -10 -10 -10 ------- Run | Yrd Mat Min Exi Maximum Alert Level . | . . . . Low Security (%) 100 | 100 100 100 . Level 1 . | . . . . Level 2 . | . . . . Level 3 . | . . . . Level 4 . | . . . . Level 5 . | . . . . High Security . | . . . . Max Security . | . . . . Peak Influence 91 | 5 77 91 . Initial 16 | . . 16 . Average 21 | . 19 46 . Influence Increases 345 | 5 255 85 . Destroy 0b10 Robot/C 220 | . 160 60 . Destroy 0b10 Robot/NC 20 | 5 15 . . Destroy Leader 64 | . 54 10 . Successful Hack 10 | . 10 . . Destroy Structure 16 | . 1 15 . Lose Combat Pursuer 15 | . 15 . . Influence Decreases 345 | 5 213 116 11 Entered New Map 37 | . . 26 11 Time Decay 308 | 5 213 90 . Squads Dispatched 3 | . 3 . . Investigation 2 | . 2 . . Extermination . | . . . . Reinforcement 1 | . 1 . . Assault . | . . . . Garrison . | . . . . Intercept . | . . . . Searches Triggered . | . . . . Construction Impeded . | . . . . Haulers Reinforced . | . . . . Active Scanning Responses . | . . . . Cargo Convoy Interrupts . | . . . . Stealth | -11 -10 -10 -10 --------- Run | Yrd Mat Min Exi Distress Signals 3 | . 3 . . Communications Jammed . | . . . . Distress Signals . | . . . . Times Spotted 31 | . 20 3 8 Peak Tracking Total 9 | . 5 3 9 Tactical Retreats 1 | . 1 . . Traps | -11 -10 -10 -10 ------- Run | Yrd Mat Min Exi Traps Triggered 3 | . 3 . . Indirectly . | . . . . Trap Hack Attempts . | . . . . Triggered . | . . . . Disarmed . | . . . . Reprogrammed . | . . . . Reused . | . . . . Traps Extracted . | . . . . Installed . | . . . . Triggered . | . . . . Machines | -11 -10 -10 -10 ---------- Run | Yrd Mat Min Exi Machines Disabled 2 | . . . 2 Max in Single Turn 1 | . . . 1 Machines Repaired . | . . . . Machines Dismantled . | . . . . Machines Sabotaged . | . . . . Overloaded Fab Kills . | . . . . Hacking | -11 -10 -10 -10 --------- Run | Yrd Mat Min Exi Machines Accessed 6 | . 5 . 1 Terminals 4 | . 4 . . Fabricators . | . . . . Repair Stations 1 | . 1 . . Recycling Units . | . . . . Scanalyzers . | . . . . Garrison Access . | . . . . Total Hacks 14 | . 13 . 1 Successful 9 | . 8 . 1 Failed 5 | . 5 . . Catastrophic . | . . . . Database Lockouts . | . . . . Manual 7 | . 6 . 1 Terminals 11 | . 11 . . Fabricators . | . . . . Repair Stations 2 | . 2 . . Recycling Units . | . . . . Scanalyzers . | . . . . Garrison Access . | . . . . Terminal Hacks 5 | . 4 . 1 Robot Analysis 1 | . 1 . . Prototype ID Bank 2 | . 2 . . Locate Traps 1 | . 1 . . Proto ID Catalog 1 | . . . 1 Fabricator Hacks . | . . . . Repair Station Hacks 2 | . 2 . . Scan Component 1 | . 1 . . Repair 1 | . 1 . . Recycling Unit Hacks . | . . . . Scanalyzer . | . . . . Garrison Access Hacks . | . . . . Unauthorized Hacks 2 | . 2 . . Terminals 2 | . 2 . . Botnet 2 | . 2 . . Fabricators . | . . . . Repair Stations . | . . . . Recycling Units . | . . . . Scanalyzers . | . . . . Garrison Access . | . . . . Data Cores Recovered . | . . . . Used . | . . . . Hacking Detections 4 | . 4 . . Full Trace Events . | . . . . Feedback Events . | . . . . Feedback Blocked . | . . . . Robot Schematics Acquired . | . . . . Robots Built . | . . . . Authchips . | . . . . Time . | . . . . Total Robot Build Rating . | . . . . Part Schematics Acquired . | . . . . Parts Built . | . . . . Authchips . | . . . . Time . | . . . . Total Part Build Rating . | . . . . Part Studies Acquired . | . . . . Parts Repaired 1 | . 1 . . Time 26 | . 26 . . Parts Recycled . | . . . . Recycled Matter . | . . . . Retrieved Matter . | . . . . Retrieved Components . | . . . . Parts Scanalyzed . | . . . . Part Schematics Acquired . | . . . . Parts Damaged . | . . . . Bothacking | -11 -10 -10 -10 ------------ Run | Yrd Mat Min Exi Used RIF Installer . | . . . . Robots Hacked . | . . . . Non-combat . | . . . . Combat . | . . . . Robot Hacks Applied . | . . . . Relay Couplers Released . | . . . . Fabnet Peak Effective % . | . . . . Robots Rewired . | . . . . Allies Hacked . | . . . . Hacks Repelled . | . . . . Allies | -11 -10 -10 -10 -------- Run | Yrd Mat Min Exi Total Allies . | . . . . Largest Group . | . . . . Highest-Rated Group . | . . . . Highest-Rated Ally . | . . . . Total Orders . | . . . . Ally Attacks . | . . . . Total Damage . | . . . . Kills . | . . . . Allies Corrupted . | . . . . Allies Melted . | . . . . Intel | -11 -10 -10 -10 ------- Run | Yrd Mat Min Exi Active Infowar (turns) . | . . . . Robot Analysis Total 1 | . 1 . . Derelict Logs Recovered . | . . . . Drone Launches . | . . . . Drone Recoveries . | . . . . Exploration | -11 -10 -10 -10 ------------- Run | Yrd Mat Min Exi Turns Passed 1625 | 112 965 190 358 Spaces Moved 838 | 57 480 114 187 Core 2 | 2 . . . Treads 836 | 55 480 114 187 Legs . | . . . . Wheels . | . . . . Hover . | . . . . Flight . | . . . . Fastest Speed 50 | 50 160 160 160 Average Speed 159 | 156 160 160 160 Slowest Speed 160 | 160 160 160 160 Overloaded Moves . | . . . . Propulsion Burnouts . | . . . . Robots Hopped . | . . . . Potential Cave-ins . | . . . . Cave-ins Triggered . | . . . . Exploration Rate (%) 35 | 4 66 29 41 Regions Visited 3 Branch Regions 2 Pre-discovered Areas . | . . . . Known Exits Taken . | . . . . Unknown Exits Taken 3 | 1 1 1 . Scrap Searched . | . . . . Spaces Dug . | . . . . Terrain Destroyed 28 | . . 16 12 Melee . | . . . . Projectile . | . . . . AOE 28 | . . 16 12 Terrain Rammed . | . . . . Walls Destroyed . | . . . . Machines Disabled . | . . . . Actions | -11 -10 -10 -10 --------- Run | Yrd Mat Min Exi Total 1003 | 70 589 119 225 Wait 35 | . 21 . 14 Move 835 | 56 479 113 187 Hop . | . . . . Pick Up 20 | 4 14 . 2 Fast Attach 9 | 5 4 . . Attach 2 | . . . 2 Detach 1 | . 1 . . Swap 15 | . 9 3 3 Drop 14 | 1 12 1 . Fire 57 | 4 46 2 5 Melee 12 | . . . 12 Ram . | . . . . Kick . | . . . . Crush 3 | . 3 . . Escape Stasis . | . . . . Rewire . | . . . . Trap . | . . . . Miscellaneous . | . . . . Route ------- -11/Scrapyard -10/Materials (discovered 3 exits: [*Mat x2] / [*Min]) -10/Mines (discovered 2 exits: *Exi / [*Sub]) -10/Exiles (discovered 1 exit: [*Min]) History --------- Turn | Location | Event 33 | -11/Scrapyard | Discovered new exit (range 16) 113 | -11/Scrapyard | Entered Materials 318 | -10/Materials | Build established: Mutant 371 | -10/Materials | Discovered new exit (range 9) 492 | -10/Materials | Repaired Lgt. Treads 608 | -10/Materials | Discovered new exit (range 15) 912 | -10/Materials | Discovered new exit (range 16) 1078 | -10/Materials | Entered Mines 1091 | -10/Mines | Met a Derelict bent on vengeance 1185 | -10/Mines | Discovered new exit (range 6) 1262 | -10/Mines | Deemed a non-threat by the Exiles lab entrance 1262 | -10/Mines | Discovered new exit (range 5) 1268 | -10/Mines | Entered Exiles 1294 | -10/Exiles | Discovered new exit (range 15) 1312 | -10/Exiles | Met 8R-AWN 1336 | -10/Exiles | Met EX-HEX 1379 | -10/Exiles | Met EX-BIN 1398 | -10/Exiles | Aligned with FarCom system 1400 | -10/Exiles | Given EX-Vault access code 1436 | -10/Exiles | Opened EX-Vault 1456 | -10/Exiles | Found 0b10 Alert Chip 1489 | -10/Exiles | Warned to stay clear of 0b10 Research branches 1500 | -10/Exiles | Attacked by the Exiles 1539 | -10/Exiles | Destroyed 7 combat bots 1561 | -10/Exiles | Found Longsword +1 1584 | -10/Exiles | Core integrity fell below 50% 1614 | -10/Exiles | Core integrity fell below 20% 1626 | -10/Exiles | Destroyed by 8R-AWN with 8R-AWN's Boregun Last Messages --------------- 01588_ Critical hit (Destroy). 01588_ Lgt. Treads destroyed. 01588_ Penetrated by HV Slug. 01590_ 8R-AWN Prototype Leg severed. 01592_ Penetrated by HV Slug. 01601_ HV Slug penetrates Wall. 01601_ Penetrated by HV Slug. 01605_ HV Slug penetrates Wall. 01607_ 8R-AWN Rnf. Fission Core severed. 01611_ HV Slug penetrates Wall. 01611_ Penetrated by HV Slug. 01611_ Critical hit (Destroy). 01611_ Lgt. Treads destroyed. 01613_ Penetrated by HV Slug. 01616_ Critical hit (Destroy). 01616_ Lgt. Ion Engine destroyed. 01622_ Penetrated by HV Slug. 01622_ HV Slug penetrates Wall. 01622_ HV Slug penetrates Earth. 01626_ Penetrated by HV Slug. Map ----- +----------------------------------------------------+ | | | | | | | | | | | | | | | | | | | | | ?????????????????????????###?????????????????????? | | ??????????????????????####X####??????????????????? | | ??????????????????????# ! #??????????????????? | | ??????????????????????# #??????????????????? | | ??????????????????????# #??????????????????? | | ??????????????????????## ##??????????????????? | | ??????????????????????# #???????????????????? | | ??????????????????????## #???????????????????? | | ???????????????????????# = #???????????????????? | | ???????????????????????# #???###?????????????? | | ????????????????????##?# #??"""""#???????????? | | ????????????????????# ## * ## """#???????????? | | ?????????????????????# # X""#???????????? | | ??????????????????????#; ## """#???????????? | | ?????????????????####??# #??"""""#???????????? | | ?????????????????"""""?# @ #???###?????????????? | | ????????????????"""" ## g #???????????????????? | | ???????????????#""X" #???????????????????? | | ???????????????#" #???????????????????? | | ???????????????#" ## #???????????????????? | | ???????????????#""""""?# #?#########?????????? | | ????????????????#"###??# #?#"""""""#?????????? | | ???????????????????????# #?#"""""""#?????????? | | ???????????????????????# #?#"""""""#?????????? | | ??????????????????????## ###"" """"#?????????? | | ??????????????????????#" """"#?????????? | | ??????????????????????#" """#?????????? | | ??????????????????????#" """#?????????? | | ??????????????????????#" """#?????????? | | ??????????????????????#" """#?????????? | | ??????????????????????#" """#?????????? | | ??????????????????????## """"?????????? | | ???????????????????????# """#?????????? | | ???????????????????????#" "X" """??????????? | | ???????????????????????#" """ #?????????? | | ???????????????????????# """"""""#?????????? | | ??????????????????????## #########?????????? | | ?????????????????????##" ?????????????????? | | ???????????????????###"" % ?????????????????? | | ???????????????????""""" #?????????????????? | +----------------------------------------------------+ Best States ------------- Heat Dissipation 35 Energy Generation 14 Energy Capacity 250 Matter Stores 300 Matter Capacity 300 Sight Range 16 Terrain Scan Density 10 Evasion (%) 40 Targeting Accuracy 5 Recoil Reduction 2 Item Schematics ----------------- None Robot Schematics ------------------ None Fabricated ------------ Nothing Repaired ---------- Lgt. Treads | 59% | -10/Materials Studied --------- None Alien Tech Used ----------------- None Achievements -------------- None Challenges ------------ None Game ------ Seed InsulationSkeletonDevice Manual? 0 Play Time 00:10:54 Cumulative 669.2 hours Start 2026.09.12 @ 21:49:41 End 2026.09.12 @ 22:00:31 Sessions 1 Manual Loads 0 Difficulty Rogue Special Mode None Game No. 297 Rogue 297 Adventurer 0 Explorer 0 Win Type - Total 42 Types 20/5/6/2/1/2/2/2/1/1 Lore% 93 Gallery% 83 Achievement% 80 Wizard Run 0 Options --------- Layout 0 ASCII 0 Keyboard 1 Movement Arrows Keybinds 0 Fullscreen 2 Font 18/Terminus Map View 76x50 Zoom Use 0% Tactical HUD 1 Map Filters BRIGHTNESS(90)|SATURATION(90) Filters NONE Steam 1 RUN: 2942e820-9c58-4aa0-822d-8019372e91d3